bitfinex/quotes_SOLUSD_20250528
["timestamp","ask_amount","ask_price","bid_price","bid_amount"]
[1748459177333,5.87371512,170.25,170.23,36.38]
[1748459179536,26.6424657,170.25,170.23,36.38]
[1748459182733,20.55702058,170.26,170.23,36.38]
[1748459182941,20.76875058,170.25,170.23,36.38]
[1748459184030,5.87406015,170.24,170.23,36.38]
[1748459186121,20.76875058,170.24,170.19,18.64964886]
[1748459186348,20.76875058,170.22,170.18,9.58]
[1748459186552,88.5,170.24,170.18,9.58]
[1748459186857,20.76875058,170.19,170.18,36.38]
[1748459187047,20.76875058,170.2,170.16,20.76875058]
[1748459187355,20.76875058,170.2,170.17,36.38]
[1748459187521,26.0,170.2,170.18,20.76875058]
[1748459187725,88.5,170.23,170.19,20.76875058]
[1748459187924,5.87475032,170.22,170.21,20.76875058]
[1748459188119,5.87475032,170.22,170.21,57.14875058]
[1748459188347,5.8744998,170.23,170.21,57.14875058]
[1748459188774,5.8744998,170.23,170.21,36.38]
[1748459190050,5.87406015,170.24,170.21,36.38]
[1748459192355,5.87406015,170.24,170.22,20.76875058]
[1748459192562,5.87337013,170.26,170.23,20.76875058]
[1748459192735,5.87337013,170.26,170.24,36.38]
[1748459195863,5.87268029,170.28,170.25,20.76875058]
[1748459196043,5.87233542,170.29,170.27,20.76875058]
[1748459196364,5.87233542,170.29,170.28,36.38]
[1748459196957,26.641086,170.29,170.28,36.38]
[1748459198174,5.87233542,170.29,170.28,36.38]
[1748459201157,5.87233542,170.29,170.28,57.14875058]
[1748459201581,20.55020571,170.32,170.28,57.14875058]
[1748459201757,5.87130108,170.32,170.29,20.76875058]
[1748459203399,5.87130108,170.32,170.3,20.76875058]
[1748459203555,5.87095637,170.33,170.31,36.36]
[1748459205481,26.63970695,170.33,170.31,36.36]
[1748459209102,5.87095637,170.33,170.31,36.36]
[1748459209294,26.63970695,170.33,170.31,36.36]
[1748459210719,20.76875058,170.34,170.31,36.36]
[1748459212208,109.04662752,170.35,170.31,36.36]
[1748459212407,20.76875058,170.34,170.31,36.36]
[1748459212709,5.87095637,170.33,170.31,36.36]
[1748459214586,5.87061171,170.34,170.31,36.36]
[1748459215694,5.87061171,170.34,170.31,57.12875058]
[1748459218608,5.87061171,170.34,170.32,20.76875058]
[1748459220403,5.86992251,170.36,170.32,20.76875058]
[1748459220698,5.86992251,170.36,170.32,36.34]
[1748459220699,20.76875058,170.33,170.32,36.34]
[1748459220899,20.76875058,170.33,170.3,45.9]
[1748459221225,88.5,170.35,170.3,9.56]
[1748459221226,20.76875058,170.32,170.3,9.56]
[1748459221523,20.76875058,170.31,170.27,20.76875058]
[1748459221692,20.76875058,170.31,170.28,36.34]
[1748459222027,14.88026119,170.31,170.28,36.34]
[1748459222187,88.5,170.34,170.28,36.34]
[1748459222485,5.8719906,170.3,170.29,14.88026119]
[1748459222690,5.87095637,170.33,170.29,14.88026119]
[1748459222885,5.87095637,170.33,170.3,14.88026119]
[1748459223113,5.87095637,170.33,170.31,36.34]
[1748459227120,5.87061171,170.34,170.31,36.34]
[1748459228411,37.91792531,170.35,170.31,59.58156852]
[1748459228412,20.54662388,170.35,170.31,59.58156852]
[1748459228601,43.7881924,170.35,170.31,59.58156852]
[1748459228917,23.24156852,170.34,170.31,36.34]
[1748459230309,14.67635679,170.35,170.31,36.34]
[1748459230508,37.91792531,170.35,170.31,36.34]
[1748459230907,23.24156852,170.34,170.31,36.34]
[1748459231514,23.24156852,170.33,170.31,36.34]
[1748459231697,23.24156852,170.32,170.28,9.56]
[1748459232017,5.87164582,170.31,170.29,36.34]
[1748459232196,5.87164582,170.31,170.3,26.0]
[1748459233423,5.87164582,170.31,170.3,49.24156852]
[1748459234296,5.87061171,170.34,170.3,49.24156852]
[1748459234498,5.87061171,170.34,170.33,23.24156852]
[1748459234705,5.87037006,170.35,170.33,59.58156852]
[1748459235396,5.87037006,170.35,170.31,26.0]
[1748459235589,5.87037006,170.35,170.32,36.34]
[1748459235817,5.87037006,170.35,170.32,59.58156852]
[1748459236123,5.87037006,170.35,170.33,23.24156852]
[1748459236309,5.86957797,170.37,170.33,23.24156852]
[1748459236902,20.54352291,170.37,170.33,23.24156852]
[1748459238327,43.78509143,170.37,170.32,59.58156852]
[1748459238705,5.86957797,170.37,170.34,23.24156852]
[1748459238897,5.86957797,170.37,170.35,36.34]
[1748459239104,5.86957797,170.37,170.35,59.58156852]
[1748459239709,5.86957797,170.37,170.35,36.34]
[1748459240400,23.24156852,170.37,170.35,36.34]
[1748459240731,43.78388568,170.38,170.35,36.34]
[1748459244404,20.54231716,170.38,170.35,36.34]
[1748459244707,20.54231716,170.38,170.35,59.58156852]
[1748459245995,43.78388568,170.38,170.35,36.34]
[1748459247809,43.78388568,170.38,170.33,23.24156852]
[1748459248007,43.78388568,170.38,170.34,36.32]
[1748459249023,43.78388568,170.38,170.33,23.24156852]
[1748459249227,23.24156852,170.36,170.34,36.32]
[1748459249422,23.24156852,170.35,170.33,36.32]
[1748459249815,5.87061171,170.34,170.3,9.56]
[1748459250035,43.78870952,170.34,170.31,36.32]
[1748459250419,23.24156852,170.32,170.24,1.5093]
[1748459250735,23.24156852,170.32,170.28,26.0]
[1748459250912,20.547141,170.34,170.29,59.56156852]
[1748459251111,43.78870952,170.34,170.29,59.56156852]
[1748459252344,37.91809781,170.34,170.29,59.56156852]
[1748459253125,37.91809781,170.34,170.3,23.24156852]
[1748459253326,37.91809781,170.34,170.29,59.56156852]
[1748459254249,43.78870952,170.34,170.29,59.56156852]
[1748459254911,20.547141,170.34,170.31,23.24156852]
[1748459255114,5.87061171,170.34,170.32,59.56156852]
[1748459257241,5.87026709,170.35,170.32,59.56156852]
[1748459258337,5.87026709,170.35,170.34,23.24156852]
[1748459261843,20.54111155,170.39,170.34,23.24156852]
[1748459262154,20.54111155,170.39,170.35,59.56156852]
[1748459262650,20.54111155,170.39,170.37,23.24156852]
[1748459262852,20.54111155,170.39,170.35,36.32]
[1748459263053,20.54111155,170.39,170.35,59.56156852]
[1748459263758,23.24156852,170.38,170.35,36.32]
[1748459264458,5.86957797,170.37,170.35,36.32]
[1748459265556,20.54352291,170.37,170.35,36.3]
[1748459267439,5.86923347,170.38,170.36,23.24156852]
[1748459267654,5.86923347,170.38,170.37,23.24156852]
[1748459268546,5.8685446,170.4,170.37,23.24156852]
[1748459268748,5.8685446,170.4,170.38,36.3]
[1748459271060,29.33602819,170.44,170.38,36.3]
[1748459271247,23.24156852,170.42,170.38,36.3]
[1748459272569,23.24156852,170.4,170.38,36.3]
[1748459272741,23.24156852,170.41,170.38,36.3]
[1748459273062,20.5399061,170.4,170.36,23.24156852]
[1748459273272,20.5399061,170.4,170.37,59.54156852]
[1748459273577,5.8685446,170.4,170.37,59.54156852]
[1748459274763,20.5399061,170.4,170.37,59.54156852]
[1748459275645,14.6713615,170.4,170.37,59.54156852]
[1748459278353,14.6713615,170.4,170.38,23.24156852]
[1748459278956,14.6713615,170.4,170.37,59.54156852]
[1748459281352,5.86820022,170.41,170.38,23.24156852]
[1748459281873,5.86785588,170.42,170.38,23.24156852]
[1748459282866,5.86785588,170.42,170.4,23.24156852]
[1748459283056,5.86785588,170.42,170.41,23.24156852]
[1748459284376,5.86785588,170.42,170.4,59.54156852]
[1748459285957,43.77906411,170.42,170.4,36.28]
[1748459286473,5.86785588,170.42,170.4,59.52156852]
[1748459286663,5.86785588,170.42,170.41,23.24156852]
[1748459287278,5.86716733,170.44,170.41,23.24156852]
[1748459287478,5.86716733,170.44,170.43,23.24156852]
[1748459287773,5.86716733,170.44,170.43,59.52156852]
[1748459288079,14.66768792,170.45,170.43,59.52156852]
[1748459289076,5.8661348,170.47,170.43,59.52156852]
[1748459289292,5.8661348,170.47,170.45,23.24156852]
[1748459289584,5.8661348,170.47,170.44,23.24156852]
[1748459290550,20.53095312,170.48,170.44,23.24156852]
[1748459291258,5.8657907,170.48,170.47,23.24156852]
[1748459291456,5.8657907,170.48,170.47,59.52156852]
[1748459292452,20.52719665,170.51,170.47,59.52156852]
[1748459292652,109.02719665,170.51,170.5,26.0]
[1748459296280,132.26876517,170.51,170.5,26.0]
[1748459296798,132.26876517,170.51,170.44,49.24156852]
[1748459297082,23.24156852,170.48,170.45,36.28]
[1748459297269,23.24156852,170.48,170.47,26.0]
[1748459297866,23.24156852,170.48,170.45,26.0]
[1748459298184,109.02719665,170.51,170.46,26.0]
[1748459298185,43.77304032,170.47,170.46,26.0]
[1748459298399,20.5314718,170.47,170.46,26.0]
[1748459300457,37.90690552,170.47,170.44,26.0]
[1748459300683,14.665337,170.47,170.44,62.28]
[1748459300888,14.665337,170.47,170.44,26.0]
[1748459301065,37.90690552,170.47,170.44,26.0]
[1748459303261,37.90690552,170.47,170.45,26.0]
[1748459303773,88.5,170.46,170.45,26.0]
[1748459304573,94.36647893,170.46,170.45,26.0]
[1748459304991,94.36647893,170.46,170.45,85.52156852]
[1748459306263,5.86647893,170.46,170.45,85.52156852]
[1748459306685,20.52857145,170.5,170.45,85.52156852]
[1748459306893,20.52857145,170.5,170.49,26.0]
[1748459309488,20.52857145,170.5,170.47,62.28]
[1748459311399,20.52857145,170.5,170.47,85.52156852]
[1748459312398,20.52857145,170.5,170.47,62.28]
[1748459312568,20.52857145,170.5,170.41,28.16964886]
[1748459312569,23.24156852,170.48,170.45,36.28]
[1748459312898,20.52857145,170.5,170.45,26.0]
[1748459312899,23.24156852,170.47,170.45,26.0]
[1748459313193,20.53026747,170.48,170.45,26.0]
[1748459314168,5.8657907,170.48,170.46,23.24156852]
[1748459314783,5.8657907,170.48,170.45,59.52156852]
[1748459314784,20.53026747,170.48,170.45,59.52156852]
[1748459315203,14.66447677,170.48,170.45,59.52156852]
[1748459315775,14.66447677,170.48,170.46,23.24156852]
[1748459316400,14.66447677,170.48,170.45,59.52156852]
[1748459317297,14.66447677,170.48,170.45,36.28]
[1748459318085,14.66447677,170.48,170.45,59.52156852]
[1748459319504,14.66447677,170.48,170.46,23.24156852]
[1748459320403,14.66447677,170.48,170.46,59.50156852]
[1748459322384,14.66447677,170.48,170.46,36.26]
[1748459323291,14.66447677,170.48,170.46,59.50156852]
[1748459323704,5.8657907,170.48,170.47,23.24156852]
[1748459325407,94.3655744,170.49,170.47,23.24156852]
[1748459325602,94.3655744,170.49,170.48,59.50156852]
[1748459326400,94.3655744,170.49,170.48,36.26]
[1748459326715,94.3655744,170.49,170.48,59.50156852]
[1748459328987,5.8655744,170.49,170.48,59.50156852]
[1748459329179,14.66246056,170.51,170.48,59.50156852]
[1748459329180,14.66246056,170.51,170.48,36.26]
[1748459329509,14.66246056,170.51,170.49,23.24156852]
[1748459329682,14.66246056,170.51,170.5,36.32]
[1748459329880,5.86441473,170.52,170.5,59.56156852]
[1748459330489,5.86441473,170.52,170.5,36.32]
[1748459331890,5.86441473,170.52,170.5,59.56156852]
[1748459332692,5.86441473,170.52,170.51,23.24156852]
[1748459333201,5.86441473,170.52,170.5,36.32]
[1748459333519,5.86441473,170.52,170.5,59.56156852]
[1748459333684,5.86441473,170.52,170.5,36.32]
[1748459333880,43.76702007,170.52,170.48,23.24156852]
[1748459334086,23.24156852,170.51,170.46,26.0]
[1748459334406,111.74156852,170.51,170.47,36.34]
[1748459335524,88.5,170.51,170.47,59.58156852]
[1748459336085,20.52785922,170.5,170.47,59.58156852]
[1748459336391,20.52785922,170.5,170.48,23.24156852]
[1748459336599,109.02785922,170.5,170.48,23.24156852]
[1748459340617,109.02785922,170.5,170.47,36.34]
[1748459340789,109.02785922,170.5,170.45,32.76156852]
[1748459340790,132.26942774,170.5,170.45,32.76156852]
[1748459341109,132.26942774,170.5,170.46,36.34]
[1748459341411,109.02785922,170.5,170.46,59.58156852]
[1748459341614,109.02785922,170.5,170.47,23.24156852]
[1748459342603,109.02785922,170.5,170.48,36.32]
[1748459343308,94.36510263,170.5,170.48,59.56156852]
[1748459343605,94.36510263,170.5,170.49,23.24156852]
[1748459344415,94.36510263,170.5,170.48,59.56156852]
[1748459346415,94.36510263,170.5,170.49,23.24156852]
[1748459346628,5.86510263,170.5,170.49,23.24156852]
[1748459347602,5.86475866,170.51,170.49,23.24156852]
[1748459347798,5.86475866,170.51,170.5,36.32]
[1748459350007,29.10632718,170.51,170.5,36.32]
[1748459351699,43.76822384,170.51,170.45,35.56]
[1748459352011,23.24156852,170.5,170.46,36.3]
[1748459352210,23.24156852,170.49,170.46,36.3]
[1748459352609,88.5,170.48,170.46,36.3]
[1748459354026,5.8661348,170.47,170.46,36.3]
[1748459355298,94.36589795,170.48,170.46,59.54156852]
[1748459355500,94.36589795,170.48,170.47,23.24156852]
[1748459357626,88.5,170.48,170.47,23.24156852]
[1748459358128,94.3657907,170.48,170.47,23.24156852]
[1748459358317,88.5,170.48,170.47,23.24156852]
[1748459358520,5.86554246,170.49,170.47,23.24156852]
[1748459358822,5.86554246,170.49,170.48,59.54156852]
[1748459359730,5.86475866,170.51,170.48,59.54156852]
[1748459360528,5.86475866,170.51,170.5,23.24156852]
[1748459360725,5.86475866,170.51,170.5,59.52156852]
[1748459361728,5.86407083,170.53,170.5,59.52156852]
[1748459361904,5.86407083,170.53,170.52,23.24156852]
[1748459362224,5.86407083,170.53,170.52,36.28]
[1748459363099,5.86407083,170.53,170.52,59.52156852]
[1748459363848,5.86407083,170.53,170.52,36.28]
[1748459364004,5.86407083,170.53,170.52,59.52156852]
[1748459364205,5.86407083,170.53,170.52,36.28]
[1748459364625,5.86338317,170.55,170.52,36.28]
[1748459364802,20.5218411,170.55,170.52,36.28]
[1748459367534,88.5,170.54,170.52,36.28]
[1748459368064,88.5,170.54,170.51,23.24156852]
[1748459368256,23.24156852,170.53,170.43,18.64964886]
[1748459368532,23.24156852,170.48,170.45,9.56]
[1748459368851,43.77424479,170.46,170.42,23.24156852]
[1748459369022,43.77424479,170.46,170.43,36.26]
[1748459370736,14.66619734,170.46,170.43,36.26]
[1748459371639,23.24156852,170.45,170.39,37.1719]
[1748459371858,23.24156852,170.45,170.41,23.24156852]
[1748459372029,14.66619734,170.46,170.41,23.24156852]
[1748459372228,37.90776586,170.46,170.42,59.50156852]
[1748459372619,14.66619734,170.46,170.43,23.24156852]
[1748459373489,14.66619734,170.46,170.44,23.24156852]
[1748459375353,29.10735922,170.48,170.42,36.26]
[1748459375549,29.10735922,170.48,170.43,23.24156852]
[1748459375777,43.77183599,170.48,170.43,23.24156852]
[1748459376186,88.5,170.47,170.44,23.24156852]
[1748459376948,88.5,170.47,170.45,36.28]
[1748459377563,5.86647893,170.46,170.45,36.28]
[1748459377879,5.86647893,170.46,170.45,59.52156852]
[1748459378478,5.86647893,170.46,170.45,36.28]
[1748459383589,5.86647893,170.46,170.45,59.52156852]
[1748459384404,5.86647893,170.46,170.45,36.28]
[1748459389121,5.86647893,170.46,170.45,59.52156852]
[1748459391309,20.53267627,170.46,170.45,36.26]
[1748459391731,20.53267627,170.46,170.44,36.26]
[1748459392105,20.53267627,170.46,170.44,59.50156852]
[1748459392429,5.86647893,170.46,170.45,23.24156852]
[1748459393921,20.52974096,170.49,170.45,23.24156852]
[1748459394110,20.52974096,170.49,170.46,36.26]
[1748459396025,20.52974096,170.49,170.46,59.50156852]
[1748459399449,20.52974096,170.49,170.46,36.26]
[1748459400027,88.5,170.48,170.46,36.26]
[1748459400226,5.8661348,170.47,170.46,36.26]
[1748459402519,5.86591851,170.48,170.46,59.50156852]
[1748459402741,5.86591851,170.48,170.47,23.24156852]
[1748459403556,5.86510263,170.5,170.47,23.24156852]
[1748459403757,5.86510263,170.5,170.49,23.24156852]
[1748459403947,5.86475866,170.51,170.49,59.50156852]
[1748459404130,5.86475866,170.51,170.5,23.24156852]
[1748459405427,5.86441473,170.52,170.5,23.24156852]
[1748459405632,5.86441473,170.52,170.51,59.50156852]
[1748459405834,5.86372698,170.54,170.51,59.50156852]
[1748459406133,5.86372698,170.54,170.53,23.24156852]
[1748459406749,5.86372698,170.54,170.53,59.50156852]
[1748459406968,20.52257044,170.55,170.53,59.50156852]
[1748459407853,20.52257044,170.55,170.54,23.24156852]
[1748459409161,20.52257044,170.55,170.53,59.50156852]
[1748459411840,109.02257044,170.55,170.53,59.50156852]
[1748459416042,132.26413896,170.55,170.5,23.24156852]
[1748459416264,88.5,170.54,170.52,23.24156852]
[1748459417973,5.86407083,170.53,170.52,23.24156852]
[1748459419472,5.86407083,170.53,170.51,23.24156852]
[1748459419964,5.86407083,170.53,170.52,59.48156852]
[1748459420270,94.36385971,170.54,170.52,59.48156852]
[1748459420467,94.36385971,170.54,170.53,23.24156852]
[1748459422295,88.5,170.54,170.53,23.24156852]
[1748459422869,5.86269566,170.57,170.53,23.24156852]
[1748459423069,5.86269566,170.57,170.56,23.24156852]
[1748459428972,5.86269566,170.57,170.55,59.48156852]
[1748459430302,5.86269566,170.57,170.56,23.24156852]
[1748459431982,5.86269566,170.57,170.55,59.48156852]
[1748459433804,5.86269566,170.57,170.56,23.24156852]
[1748459435585,5.86269566,170.57,170.55,36.24]
[1748459435780,5.86269566,170.57,170.56,23.24156852]
[1748459435981,5.86269566,170.57,170.56,14.83259511]
[1748459436902,5.86269566,170.57,170.55,51.07259511]
[1748459437594,26.0,170.56,170.55,14.83259511]
[1748459437795,26.0,170.54,170.51,24.35259511]
[1748459437998,26.0,170.52,170.51,45.76]
[1748459438317,26.0,170.52,170.51,60.59259511]
[1748459439704,31.86441473,170.52,170.51,60.59259511]
[1748459440099,31.86441473,170.52,170.51,68.94411778]
[1748459440493,94.3641902,170.53,170.51,68.94411778]
[1748459440815,94.3641902,170.53,170.52,23.18411778]
[1748459440816,114.5,170.53,170.52,23.18411778]
[1748459441317,5.86383746,170.54,170.52,23.18411778]
[1748459441619,31.86383746,170.54,170.53,59.42411778]
[1748459442992,5.86383746,170.54,170.53,59.42411778]
[1748459444830,5.86303939,170.56,170.53,59.42411778]
[1748459444998,5.86303939,170.56,170.55,23.18411778]
[1748459445202,5.86303939,170.56,170.55,59.40411778]
[1748459449462,88.5,170.63,170.56,18.64964886]
[1748459449609,5.86097761,170.62,170.61,23.18411778]
[1748459450438,5.86097761,170.62,170.61,59.40411778]
[1748459450615,5.8606404,170.63,170.61,59.40411778]
[1748459450935,5.8606404,170.63,170.62,23.18411778]
[1748459451526,5.85994726,170.65,170.62,23.18411778]
[1748459451712,20.50981541,170.65,170.61,36.22]
[1748459451927,20.50981541,170.65,170.63,23.18411778]
[1748459456243,88.5,170.64,170.63,23.18411778]
[1748459457010,94.36029067,170.64,170.63,23.18411778]
[1748459457526,94.36029067,170.64,170.61,23.18411778]
[1748459457527,109.01101734,170.64,170.61,23.18411778]
[1748459457719,109.01101734,170.64,170.61,59.40411778]
[1748459458133,109.01101734,170.64,170.58,23.18411778]
[1748459458134,23.18411778,170.62,170.58,23.18411778]
[1748459458335,23.18411778,170.62,170.55,9.5]
[1748459458336,111.68411778,170.61,170.57,23.18411778]
[1748459458648,88.5,170.6,170.57,36.2]
[1748459459035,5.86200832,170.59,170.56,23.18411778]
[1748459459240,5.86200832,170.59,170.56,59.38411778]
[1748459460444,5.86200832,170.59,170.57,23.18411778]
[1748459462333,5.86200832,170.59,170.57,59.38411778]
[1748459462647,5.86200832,170.59,170.57,36.2]
[1748459463338,20.51702913,170.59,170.56,59.38411778]
[1748459464144,20.51702913,170.59,170.57,23.18411778]
[1748459465759,5.86200832,170.59,170.57,23.18411778]
[1748459465941,5.86200832,170.59,170.56,36.2]
[1748459465942,5.86200832,170.59,170.58,59.38411778]
[1748459469538,5.86200832,170.59,170.58,36.2]
[1748459473574,31.86200832,170.59,170.58,36.2]
[1748459474657,31.86200832,170.59,170.57,23.18411778]
[1748459474658,26.0,170.56,170.54,20.28274886]
[1748459474878,26.0,170.56,170.54,43.46686664]
[1748459475078,26.0,170.56,170.55,23.18411778]
[1748459475279,26.0,170.56,170.55,59.38411778]
[1748459476758,26.0,170.56,170.55,23.18411778]
[1748459476759,31.86303939,170.56,170.55,23.18411778]
[1748459477096,31.86303939,170.56,170.55,36.2]
[1748459477263,46.52063788,170.56,170.52,32.68411778]
[1748459477454,69.70475566,170.56,170.54,36.2]
[1748459478743,69.70475566,170.56,170.53,36.2]
[1748459478923,69.70475566,170.56,170.52,36.2]
[1748459478924,23.18411778,170.55,170.52,36.2]
[1748459479124,26.0,170.53,170.52,36.2]
[1748459479831,26.0,170.53,170.51,59.38411778]
[1748459480236,26.0,170.53,170.52,36.2]
[1748459480445,26.0,170.53,170.52,59.38411778]
[1748459480639,31.86407083,170.53,170.52,59.38411778]
[1748459481037,31.86407083,170.53,170.52,36.2]
[1748459484120,31.86407083,170.53,170.52,59.38411778]
[1748459487449,26.0,170.53,170.52,59.38411778]
[1748459487941,88.5,170.54,170.52,59.38411778]
[1748459488147,88.5,170.54,170.52,36.2]
[1748459488374,94.36376601,170.54,170.53,23.18411778]
[1748459489137,88.5,170.54,170.53,23.18411778]
[1748459489346,88.5,170.54,170.53,41.83376664]
[1748459494365,26.0,170.59,170.53,41.83376664]
[1748459494546,26.0,170.59,170.5,1.6434]
[1748459494547,49.18411778,170.58,170.54,36.2]
[1748459494743,26.0,170.56,170.55,36.2]
[1748459496271,31.86303939,170.56,170.55,36.2]
[1748459496458,31.86303939,170.56,170.55,36.18]
[1748459498471,31.86303939,170.56,170.55,59.36411778]
[1748459500060,31.86303939,170.56,170.55,36.18]
[1748459503282,31.86303939,170.56,170.55,59.36411778]
[1748459505666,31.86303939,170.56,170.55,36.18]
[1748459505863,31.86303939,170.56,170.55,59.36411778]
[1748459511168,94.36244329,170.58,170.55,59.36411778]
[1748459511370,260.18411778,170.68,170.57,23.18411778]
[1748459511601,26.0,170.64,170.63,23.18411778]
[1748459511776,5.86063412,170.63,170.62,59.36411778]
[1748459513300,29.0447519,170.63,170.59,36.18]
[1748459513479,43.6963372,170.63,170.59,59.36411778]
[1748459513794,20.51221942,170.63,170.6,23.18411778]
[1748459514004,20.51221942,170.63,170.61,36.18]
[1748459514378,20.51221942,170.63,170.61,59.36411778]
[1748459516299,5.86063412,170.63,170.62,23.18411778]
[1748459517508,5.86063412,170.63,170.61,59.36411778]
[1748459517798,5.86063412,170.63,170.62,23.18411778]
[1748459519611,5.86063412,170.63,170.61,59.36411778]
[1748459520396,5.86063412,170.63,170.61,36.18]
[1748459520597,5.86063412,170.63,170.61,59.36411778]
[1748459521193,88.5,170.62,170.61,59.36411778]
[1748459523618,94.36097761,170.62,170.61,59.36411778]
[1748459529091,88.5,170.62,170.61,78.01376664]
[1748459529490,94.36097761,170.62,170.61,78.01376664]
[1748459529688,88.5,170.62,170.61,78.01376664]
[1748459531491,5.8604243,170.64,170.61,78.01376664]
[1748459531706,5.8604243,170.64,170.63,23.18411778]
[1748459531914,5.8604243,170.64,170.63,59.32411778]
[1748459532609,5.85960389,170.66,170.63,59.32411778]
[1748459532809,5.85960389,170.66,170.65,23.18411778]
[1748459533006,5.85960389,170.66,170.65,59.32411778]
[1748459535901,5.85960389,170.66,170.65,36.14]
[1748459536102,5.85960389,170.66,170.64,59.32411778]
[1748459536532,5.85960389,170.66,170.64,23.18411778]
[1748459536829,5.85960389,170.66,170.64,59.32411778]
[1748459537623,5.85960389,170.66,170.64,36.14]
[1748459537832,5.85960389,170.66,170.57,1.642]
[1748459537833,43.69273139,170.66,170.57,1.642]
[1748459538004,88.5,170.65,170.62,23.18411778]
[1748459538209,88.5,170.64,170.62,23.18411778]
[1748459539201,111.68411778,170.64,170.61,36.14]
[1748459539726,5.86132114,170.61,170.6,36.14]
[1748459539902,5.86132114,170.61,170.59,36.14]
[1748459540102,20.51462399,170.61,170.59,36.14]
[1748459540544,5.86110535,170.62,170.6,23.18411778]
[1748459540712,5.86110535,170.62,170.59,36.14]
[1748459540713,88.5,170.63,170.62,18.64964886]
[1748459540908,88.5,170.63,170.62,77.97376664]
[1748459541112,5.86041208,170.64,170.62,77.97376664]
[1748459541417,5.86041208,170.64,170.63,23.18411778]
[1748459542312,20.50861361,170.66,170.63,23.18411778]
[1748459543228,20.50861361,170.66,170.62,36.14]
[1748459543531,20.50861361,170.66,170.62,59.32411778]
[1748459545117,20.50861361,170.66,170.62,23.18411778]
[1748459545317,20.50861361,170.66,170.62,59.32411778]
[1748459545941,20.50861361,170.66,170.62,23.18411778]
[1748459546125,20.50861361,170.66,170.63,59.32411778]
[1748459546521,20.50861361,170.66,170.63,36.14]
[1748459547836,5.86029067,170.64,170.63,36.14]
[1748459548913,5.86029067,170.64,170.63,59.32411778]
[1748459549537,5.86029067,170.64,170.63,36.14]
[1748459549838,5.86029067,170.64,170.63,59.32411778]
[1748459551439,94.36008007,170.65,170.63,77.97376664]
[1748459551617,94.36008007,170.65,170.64,23.18411778]
[1748459553814,5.85926056,170.67,170.64,23.18411778]
[1748459554023,5.85926056,170.67,170.65,59.30411778]
[1748459555548,5.85926056,170.67,170.66,23.18411778]
[1748459555922,5.85926056,170.67,170.65,59.30411778]
[1748459556137,5.85926056,170.67,170.65,36.12]
[1748459558039,20.50741196,170.67,170.61,18.64964886]
[1748459558228,23.18411778,170.65,170.61,23.18411778]
[1748459558435,23.18411778,170.66,170.62,23.18411778]
[1748459558737,20.50741196,170.67,170.63,23.18411778]
[1748459558935,43.69152974,170.67,170.63,23.18411778]
[1748459559646,88.5,170.66,170.63,23.18411778]
[1748459560245,5.85994726,170.65,170.63,23.18411778]
[1748459560741,20.50981541,170.65,170.62,23.18411778]
[1748459565352,20.50981541,170.65,170.63,23.18411778]
[1748459565541,88.5,170.64,170.63,23.18411778]
[1748459566646,94.36029067,170.64,170.61,59.30411778]
[1748459567035,109.01101734,170.64,170.61,59.30411778]
[1748459567432,109.01101734,170.64,170.62,23.18411778]
[1748459568054,94.36029067,170.64,170.63,23.18411778]
[1748459568642,88.5,170.64,170.63,59.30411778]
[1748459569042,94.36029067,170.64,170.63,59.30411778]
[1748459569640,88.5,170.64,170.63,59.30411778]
[1748459569843,88.5,170.64,170.63,77.95376664]
[1748459570039,88.5,170.64,170.63,59.30411778]
[1748459570241,94.36029067,170.64,170.63,59.30411778]
[1748459571131,88.5,170.64,170.63,59.30411778]
[1748459571333,88.5,170.64,170.63,77.95376664]
[1748459571537,5.86006292,170.65,170.63,77.95376664]
[1748459571752,5.86006292,170.65,170.64,23.18411778]
[1748459572651,5.85960389,170.66,170.64,23.18411778]
[1748459572851,5.85960389,170.66,170.65,59.28411778]
[1748459576064,5.85960389,170.66,170.65,36.1]
[1748459576266,5.85960389,170.66,170.65,59.28411778]
[1748459577254,5.85960389,170.66,170.65,23.18411778]
[1748459577455,94.35960389,170.66,170.65,23.18411778]
[1748459584564,94.35960389,170.66,170.64,36.1]
[1748459584764,94.35960389,170.66,170.64,59.28411778]
[1748459585466,94.35960389,170.66,170.65,23.18411778]
[1748459587773,109.00861361,170.66,170.62,26.0]
[1748459588089,132.19273139,170.66,170.63,36.1]
[1748459588252,109.00861361,170.66,170.63,59.28411778]